Workbook

Sheet Анализ на рентабилност
B2: Анализ на рентабилност на клиенти
B3: 20 ЯНУАРИ 2013 | D3: ИМЕ НА ФИРМА
B6: Дейност на клиент | C6: Клиент 1 | D6: Клиент 2 | E6: Клиент 3 | F6: Общо
B7: Брой активни клиенти — начало на периода | C7: 5 | D7: 8 | E7: 8 | F7: =SUM(C7:E7) -> 21
B8: Брой добавени клиенти | C8: 2 | D8: 4 | E8: 4 | F8: =SUM(C8:E8) -> 10
B9: Брой загубени/прекратени клиенти | C9: -1 | D9: -2 | E9: -2 | F9: -5
B10: Брой активни клиенти — край на периода | C10: =SUBTOTAL(109,'Анализ на рентабилност'!$C$7:$C$9) -> 6 | D10: =SUBTOTAL(109,'Анализ на рентабилност'!$D$7:$D$9) -> 10 | E10: =SUBTOTAL(109,'Анализ на рентабилност'!$E$7:$E$9) -> 10 | F10: 26
B12: Анализ на рентабилност
B13: Приходи по сегмент | C13: 1,500,000 лв. | D13: 1,800,000 лв. | E13: 2,500,000 лв. | F13: =SUM('Анализ на рентабилност'!$C13:$E13) -> 5,800,000 лв.
B14: Тегло | C14: =C13/$F$13 -> 25.9% | D14: =D13/$F$13 -> 31.0% | E14: 43.1% | F14: =SUM(C14:E14) -> 100.0%
B16: Себестойност на продажбите
B17: Разходи за продължаващо обслужване и поддръжка | C17: 1,000,000 лв. | D17: 1,400,000 лв. | E17: 1,400,000 лв. | F17: =SUM('Анализ на рентабилност'!$C17:$E17) -> 3,800,000 лв.
B18: Други преки разходи за клиенти | C18: 200,000 | D18: 100,000 | E18: 100,000 | F18: =SUM('Анализ на рентабилност'!$C18:$E18) -> 400,000
B19: Обща себестойност на продажбите | C19: =SUBTOTAL(109,'Анализ на рентабилност'!$C$17:$C$18) -> 1,200,000 | D19: =SUBTOTAL(109,'Анализ на рентабилност'!$D$17:$D$18) -> 1,500,000 | E19: =SUBTOTAL(109,'Анализ на рентабилност'!$E$17:$E$18) -> 1,500,000 | F19: =SUBTOTAL(109,'Анализ на рентабилност'!$F$17:$F$18) -> 4,200,000
B20: Брутен марж | C20: =C13-'Анализ на рентабилност'!$C$19 -> 300,000 лв. | D20: =D13-'Анализ на рентабилност'!$D$19 -> 300,000 лв. | E20: =E13-'Анализ на рентабилност'!$E$19 -> 1,000,000 лв. | F20: =F13-'Анализ на рентабилност'!$F$19 -> 1,600,000 лв.
B21: Тегло | C21: =MAX(0,MIN(1,C20/$F$20)) -> 18.8% | D21: =MAX(0,MIN(1,D20/$F$20)) -> 18.8% | E21: 62.5% | F21: =SUM('Анализ на рентабилност'!$C21:$E21) -> 100.0%
B23: Други разходи
B24: Придобиване на клиенти | C24: 105,000 лв. | D24: 120,000 лв. | E24: 235,000 лв. | F24: =SUM('Анализ на рентабилност'!$C24:$E24) -> 460,000 лв.
B25: Маркетинг за клиенти | C25: 150,000 | D25: 125,000 | E25: 275,000 | F25: =SUM('Анализ на рентабилност'!$C25:$E25) -> 550,000 лв.
B26: Прекратяване на клиенти | C26: 80,000 | D26: 190,000 | E26: 140,000 | F26: =SUM('Анализ на рентабилност'!$C26:$E26) -> 410,000 лв.
B27: Общо други разходи за клиенти | C27: =SUBTOTAL(109,'Анализ на рентабилност'!$C$24:$C$26) -> 335,000 | D27: =SUBTOTAL(109,'Анализ на рентабилност'!$D$24:$D$26) -> 435,000 | E27: =SUBTOTAL(109,'Анализ на рентабилност'!$E$24:$E$26) -> 650,000 | F27: =SUBTOTAL(109,'Анализ на рентабилност'!$F$24:$F$26) -> 1,420,000
B29: Печалба от клиенти по сегмент | C29: =C20-C27 -> -35,000 лв. | D29: =D20-D27 -> -135,000 лв. | E29: =E20-E27 -> 350,000 лв. | F29: =F20-'Анализ на рентабилност'!$F$27 -> 180,000 лв.
B30: Тегло | C30: =MAX(0,MIN(1,C29/$F$29)) -> 0.0% | D30: =MAX(0,MIN(1,D29/$F$29)) -> 0.0% | E30: 100.0% | F30: =SUM('Анализ на рентабилност'!$C30:$E30) -> 100.0%
B32: Общи метрики
B33: Среден разход за придобит клиент | C33: =C24/C8 -> 52,500 лв. | D33: =D24/D8 -> 30,000 лв. | E33: =E24/E8 -> 58,750 лв.
B34: Среден разход за прекратен клиент | C34: =-C26/C9 -> 80,000 лв. | D34: =-D26/D9 -> 95,000 лв. | E34: =-E26/E9 -> 70,000 лв.
B35: Среден разход за маркетинг за активен клиент | C35: =C25/'Анализ на рентабилност'!$C$10 -> 25,000 лв. | D35: =D25/'Анализ на рентабилност'!$D$10 -> 12,500 лв. | E35: =E25/'Анализ на рентабилност'!$E$10 -> 27,500 лв.
B36: Средна печалба или загуба за клиент | C36: =C29/'Анализ на рентабилност'!$C$10 -> -5,833.33 лв. | D36: =D29/'Анализ на рентабилност'!$D$10 -> -13,500.00 лв. | E36: =E29/'Анализ на рентабилност'!$E$10 -> 35,000.00 лв.

Sheet Диаграма с общи метрики
B2: Диаграма с общи метрики за клиент
B3: =ДатаОтчет -> 20 ЯНУАРИ 2013 | R3: =ИмеHафирма -> ИМЕ НА ФИРМА
